bitfinex/quotes_BTCUSD_20251215
["timestamp","ask_amount","ask_price","bid_price","bid_amount"]
[1765821249093,0.00078218,85899.0,85898.0,0.44217576]
[1765821249659,0.00078218,85899.0,85898.0,0.37319576]
[1765821249859,0.00078218,85899.0,85898.0,0.31690268]
[1765821250064,0.00078218,85899.0,85898.0,0.33746268]
[1765821250551,0.00178218,85899.0,85898.0,0.45774268]
[1765821250688,0.00078218,85899.0,85898.0,0.56626273]
[1765821250895,0.00078218,85899.0,85898.0,0.13408005]
[1765821251119,0.00178218,85899.0,85898.0,0.13708005]
[1765821251322,0.00078218,85899.0,85898.0,0.11552005]
[1765821251677,0.00078218,85899.0,85898.0,0.13408005]
[1765821251884,0.00078218,85899.0,85898.0,0.11552005]
[1765821252092,0.00078218,85899.0,85898.0,0.11752005]
[1765821252585,0.00078218,85899.0,85898.0,0.11952005]
[1765821252586,0.11948505,85899.0,85898.0,0.11952005]
[1765821252879,0.00239505,85899.0,85898.0,0.001]
[1765821253050,0.11848505,85899.0,85898.0,0.11652005]
[1765821253219,0.11848505,85899.0,85898.0,0.003]
[1765821254489,1.22339769,85899.0,85898.0,0.001]
[1765821254728,1.22339769,85899.0,85864.0,0.01164632]
[1765821254729,0.01164401,85881.0,85877.0,0.01164456]
[1765821254925,0.0342,85878.0,85877.0,0.36005446]
[1765821255127,0.00239505,85899.0,85896.0,0.01164198]
[1765821255327,0.01164171,85898.0,85894.0,0.23284388]
[1765821255484,0.00239505,85899.0,85896.0,0.24447941]
[1765821255687,0.00239505,85899.0,85898.0,0.11652005]
[1765821256096,0.00239505,85899.0,85898.0,0.11552005]
[1765821256272,0.23283429,85898.0,85897.0,0.00999308]
[1765821256684,0.24448339,85896.0,85892.0,0.01164252]
[1765821256888,0.24448339,85896.0,85895.0,0.00999308]
[1765821257289,0.36057339,85896.0,85895.0,0.00999308]
[1765821257488,0.11609,85896.0,85895.0,0.00999308]
[1765821258274,0.01164293,85889.0,85885.0,0.11552005]
[1765821258525,0.2328593,85889.0,85887.0,0.11552005]
[1765821258728,0.24449876,85890.0,85888.0,0.14306464]
[1765821259007,0.24449876,85890.0,85879.0,0.01856]
[1765821259008,0.01164469,85876.0,85872.0,0.01164523]
[1765821259194,0.01164429,85879.0,85873.0,0.0116451]
[1765821259195,0.24453405,85878.0,85873.0,0.0116451]
[1765821259397,0.08233456,85877.0,85876.0,0.00999308]
[1765821259575,0.16193456,85877.0,85876.0,0.00999308]
[1765821259778,0.24455798,85870.0,85869.0,0.11552005]
[1765821259982,0.01164673,85861.0,85856.0,0.24459347]
[1765821260162,0.07069,85869.0,85866.0,0.01164605]
[1765821260500,0.01164537,85871.0,85865.0,0.00999308]
[1765821260804,0.24455751,85870.0,85869.0,0.11552005]
[1765821261207,0.36064751,85870.0,85869.0,0.11552005]
[1765821261412,0.11609,85870.0,85869.0,0.11552005]
[1765821261617,0.01164483,85875.0,85870.0,0.01164551]
[1765821261779,0.01164483,85875.0,85873.0,0.11552005]
[1765821262123,0.07069,85878.0,85875.0,0.23289364]
[1765821262344,0.01164429,85879.0,85878.0,0.11552005]
[1765821262481,0.01164361,85884.0,85881.0,0.11552005]
[1765821262682,0.23286243,85888.0,85885.0,0.11552005]
[1765821262922,0.0116432,85887.0,85886.0,0.11552005]
[1765821263123,0.24450731,85887.0,85886.0,0.12940082]
[1765821263386,0.24450702,85888.0,85887.0,0.11552005]
[1765821263583,0.0454,85887.0,85886.0,0.01388077]
[1765821263838,0.24449989,85890.0,85883.0,0.23287495]
[1765821263839,0.002,85884.0,85883.0,0.23287495]
[1765821264000,0.002,85884.0,85883.0,0.348395]
[1765821264834,0.01164225,85894.0,85889.0,0.01164293]
[1765821265131,0.10489,85895.0,85889.0,0.01164293]
[1765821265132,0.0342,85895.0,85892.0,0.01164252]
[1765821265339,0.0342,85895.0,85893.0,0.23284746]
[1765821265639,0.0342,85895.0,85889.0,0.12716298]
[1765821265640,0.03581287,85895.0,85894.0,0.11552005]
[1765821265997,0.08121287,85895.0,85894.0,0.11552005]
[1765821266226,0.15490287,85895.0,85894.0,0.11552005]
[1765821266658,0.08421287,85895.0,85894.0,0.11552005]
[1765821267165,0.23284513,85894.0,85893.0,0.1155338]
[1765821267483,0.30353513,85894.0,85893.0,0.1155338]
[1765821267647,0.27824513,85894.0,85893.0,0.1155338]
[1765821267819,0.34893513,85894.0,85893.0,0.1155338]
[1765821268265,0.34893513,85894.0,85893.0,0.12708718]
[1765821268770,0.34893513,85894.0,85893.0,0.01155338]
[1765821269629,0.34893513,85894.0,85893.0,0.01255338]
[1765821270367,0.0454,85894.0,85893.0,0.01255338]
[1765821270580,0.00161287,85895.0,85894.0,0.34837893]
[1765821270776,0.12753,85912.0,85898.0,0.34836809]
[1765821270777,0.0342,85912.0,85898.0,0.34836809]
[1765821270973,0.00078218,85899.0,85898.0,0.41567809]
[1765821271119,0.00078218,85899.0,85898.0,0.48567809]
[1765821271323,0.00078218,85899.0,85898.0,0.53569648]
[1765821271827,0.00078218,85899.0,85898.0,0.36115576]
[1765821272059,0.00078218,85899.0,85898.0,0.31240576]
[1765821272267,0.00078218,85899.0,85898.0,0.31140576]
[1765821272465,0.23279196,85914.0,85898.0,0.31140576]
[1765821272466,0.24024398,85903.0,85902.0,0.1155338]
[1765821272668,0.24445892,85904.0,85903.0,0.1155338]
[1765821272828,0.24457351,85904.0,85903.0,0.1155338]
[1765821273027,0.36109351,85904.0,85903.0,0.1155338]
[1765821273434,0.23282352,85902.0,85898.0,0.24447574]
[1765821273632,0.01164185,85897.0,85893.0,0.00999308]
[1765821273874,0.23284513,85894.0,85893.0,0.00999308]
[1765821274074,0.04658,85894.0,85893.0,0.00999308]
[1765821274275,0.34936513,85894.0,85893.0,0.00999308]
[1765821274476,0.04658,85894.0,85893.0,0.24284092]
[1765821274710,0.27942513,85894.0,85893.0,0.00999308]
[1765821275130,0.27942513,85894.0,85893.0,0.01199308]
[1765821275310,0.27942513,85894.0,85893.0,0.01499308]
[1765821275311,0.04658,85894.0,85893.0,0.01499308]
[1765821275629,0.27942513,85894.0,85893.0,0.01499308]
[1765821275831,0.04658,85894.0,85893.0,0.01499308]
[1765821276597,0.27942513,85894.0,85893.0,0.005]
[1765821276815,0.350978,85894.0,85893.0,0.005]
[1765821277515,0.23285597,85890.0,85889.0,0.1155338]
[1765821277869,0.24451869,85883.0,85882.0,0.00999308]
[1765821278215,0.36103869,85883.0,85882.0,0.00999308]
[1765821279796,0.36103869,85883.0,85882.0,0.01199308]
[1765821280450,0.36103869,85883.0,85882.0,0.01299308]
[1765821281475,0.01164293,85889.0,85886.0,0.01164334]
[1765821281679,0.01164307,85888.0,85887.0,0.1155338]
[1765821281887,0.24450447,85888.0,85887.0,0.1155338]
[1765821282060,0.29108447,85888.0,85887.0,0.1155338]
[1765821282373,0.23287495,85883.0,85882.0,0.002]
[1765821282585,0.27945495,85883.0,85882.0,0.002]
[1765821282784,0.27945495,85883.0,85876.0,0.1155338]
[1765821282785,0.23289122,85877.0,85876.0,0.1155338]
[1765821282984,0.0116451,85873.0,85872.0,0.00999308]
[1765821283301,0.0116451,85873.0,85870.0,0.24455564]
[1765821283302,0.06994,85876.0,85875.0,0.23289665]
[1765821283530,0.01164388,85882.0,85876.0,0.01164469]
[1765821283646,0.02604,85888.0,85887.0,0.00999308]
[1765821283845,0.02604,85888.0,85887.0,0.01037526]
[1765821284075,0.3054814,85888.0,85887.0,0.01037526]
[1765821284290,0.07262,85888.0,85887.0,0.01037526]
[1765821284490,0.3754214,85888.0,85887.0,0.01037526]
[1765821285143,0.3754214,85888.0,85887.0,0.01137526]
[1765821285144,0.14256,85888.0,85887.0,0.01137526]
[1765821285347,0.02604,85888.0,85887.0,0.01137526]
[1765821285550,0.3054814,85888.0,85887.0,0.01137526]
[1765821285709,0.3754214,85888.0,85887.0,0.01137526]
[1765821286329,0.3754214,85888.0,85887.0,0.00138218]
[1765821286704,0.3754214,85888.0,85887.0,0.01307378]
[1765821287703,0.3754214,85888.0,85887.0,0.00138218]
[1765821287906,1.3754214,85888.0,85887.0,0.00138218]
[1765821288354,0.3754214,85888.0,85887.0,0.00138218]
[1765821288562,0.3754214,85888.0,85887.0,0.00038218]
[1765821288973,0.3764214,85888.0,85887.0,0.00038218]
[1765821289174,0.2589014,85888.0,85887.0,0.01313818]
[1765821289413,0.3054814,85888.0,85887.0,0.01313818]
[1765821289827,0.3064814,85888.0,85887.0,0.01313818]
[1765821290008,0.07362,85888.0,85887.0,0.01313818]
[1765821290419,0.3764214,85888.0,85887.0,0.01313818]
[1765821290623,0.001,85888.0,85887.0,0.12867198]
[1765821290834,0.23446884,85890.0,85889.0,0.1155338]
[1765821291049,0.0376809,85904.0,85898.0,0.01164171]
[1765821291256,0.27049892,85904.0,85903.0,0.08877562]
[1765821291463,0.27049892,85904.0,85895.0,0.01164212]
[1765821291464,0.23283743,85897.0,85893.0,0.01164239]
[1765821291666,0.04658,85890.0,85889.0,0.01478859]
[1765821291866,0.04658,85890.0,85884.0,0.02163669]
[1765821291867,0.29108188,85890.0,85887.0,0.00038218]
[1765821292085,0.04658,85888.0,85887.0,0.00038218]
[1765821292271,0.04658,85888.0,85887.0,0.0891578]
[1765821292481,0.11652,85888.0,85887.0,0.0891578]
[1765821292709,0.04658,85888.0,85887.0,0.0891578]
[1765821293362,0.04658,85888.0,85887.0,0.00038218]
[1765821293363,0.11652,85888.0,85887.0,0.00038218]
[1765821293809,0.11652,85888.0,85841.0,0.07052]
[1765821294003,0.24450195,85890.0,85858.0,0.24458989]
[1765821294004,0.23293505,85861.0,85858.0,0.24458989]
[1765821294215,0.01164659,85862.0,85856.0,0.0116474]
[1765821294216,0.01164659,85862.0,85861.0,0.08877562]
[1765821294437,0.01164578,85868.0,85860.0,0.01164686]
[1765821294658,0.23291601,85868.0,85866.0,0.08877562]
[1765821295291,0.03384,85867.0,85866.0,0.08877562]
[1765821295491,0.0116474,85856.0,85855.0,0.10733562]
[1765821295716,0.0116474,85856.0,85855.0,0.12156365]
[1765821296596,0.24462099,85848.0,85845.0,0.00011464]
[1765821296809,0.24462099,85848.0,85847.0,0.08877562]
[1765821297027,0.01164795,85852.0,85851.0,0.08877562]
[1765821297208,0.01164795,85852.0,85851.0,0.11632021]
[1765821297411,0.01164795,85852.0,85851.0,0.08877562]
[1765821297412,0.04548795,85852.0,85851.0,0.08877562]
[1765821297621,0.24460983,85851.0,85847.0,0.2329702]
[1765821297823,0.04548795,85852.0,85850.0,0.2329631]
[1765821297824,0.03384,85852.0,85850.0,0.2329631]
[1765821297950,0.01164768,85854.0,85850.0,0.2329631]
[1765821298349,0.26680263,85851.0,85849.0,0.00999308]
[1765821298544,0.03384,85850.0,85849.0,0.00999308]
[1765821298758,0.2446211,85848.0,85847.0,0.08877562]
[1765821298996,0.23296718,85849.0,85847.0,0.08877562]
[1765821298997,0.23296718,85849.0,85848.0,0.08877562]
[1765821299533,0.26680718,85849.0,85848.0,0.08877562]
[1765821299723,0.26680718,85849.0,85845.0,0.00011464]
[1765821299724,0.23297532,85846.0,85845.0,0.00011464]
[1765821299878,0.26681532,85846.0,85845.0,0.00011464]
[1765821300092,0.24461908,85848.0,85845.0,0.00011464]
[1765821300298,0.01164754,85855.0,85850.0,0.08877562]
[1765821300501,0.01164754,85855.0,85848.0,0.01164849]
[1765821300502,0.24460062,85855.0,85854.0,0.08877562]
[1765821300675,0.01164754,85855.0,85854.0,0.08877562]
[1765821301090,0.01164754,85855.0,85850.0,0.24461221]
[1765821301091,0.23295936,85852.0,85850.0,0.08877562]
[1765821301286,0.06768,85855.0,85854.0,0.08877562]
[1765821301287,0.01164754,85855.0,85854.0,0.08877562]
[1765821301689,0.01164754,85855.0,85829.0,0.01165107]
[1765821301690,0.23297532,85846.0,85829.0,0.01165107]
[1765821301907,0.26681532,85846.0,85840.0,0.08877562]
[1765821302108,0.26681532,85846.0,85841.0,0.08877562]
[1765821302791,0.30065532,85846.0,85841.0,0.08877562]
[1765821303086,0.30065532,85846.0,85845.0,0.00900367]
[1765821303487,0.30065532,85846.0,85845.0,0.00111464]
[1765821303753,0.30065532,85846.0,85830.0,0.00594651]
[1765821303754,0.23301604,85831.0,85830.0,0.00594651]
[1765821303871,0.26685604,85831.0,85830.0,0.00594651]
[1765821304091,0.23305179,85818.0,85816.0,0.08877562]
[1765821304344,0.01165188,85823.0,85817.0,0.0116527]
[1765821304537,0.01165202,85822.0,85816.0,0.3219455]
[1765821304740,0.01165202,85822.0,85820.0,0.00999308]
[1765821304948,0.26688552,85821.0,85820.0,0.00999308]
[1765821305554,0.23305405,85817.0,85816.0,0.08889038]
[1765821305730,0.0524,85835.0,85820.0,0.2446982]
[1765821305944,0.23302161,85829.0,85825.0,0.01165161]
[1765821306145,0.003,85831.0,85830.0,0.23301676]
[1765821306347,0.01207,85838.0,85837.0,0.23299975]
[1765821306549,0.01164998,85837.0,85833.0,0.01165053]
[1765821306728,1.09543425,85850.0,85843.0,0.08877562]
[1765821306931,0.01164822,85850.0,85845.0,0.23297746]
[1765821307134,0.24462933,85845.0,85843.0,0.08877562]
[1765821307332,0.24462774,85845.0,85844.0,0.08877562]
[1765821308049,0.24462774,85845.0,85839.0,0.01164971]
[1765821308050,0.24462978,85844.0,85843.0,0.001]
[1765821308245,0.23296342,85851.0,85843.0,0.001]
[1765821308455,0.006,85850.0,85849.0,0.08877562]
[1765821308656,0.006,85850.0,85849.0,0.3217428]
[1765821309068,0.12784068,85866.0,85861.0,0.01164673]
[1765821309281,0.01164646,85863.0,85860.0,0.00999308]
[1765821309458,0.24457882,85863.0,85860.0,0.00999308]
[1765821309655,0.01164632,85864.0,85860.0,0.00999308]
[1765821309884,0.23293229,85862.0,85860.0,0.00999308]
[1765821310126,0.24457412,85864.0,85863.0,0.08877562]
[1765821310706,0.03341618,85865.0,85863.0,0.08877562]
[1765821310861,0.11930922,85866.0,85864.0,0.08877562]
[1765821311177,0.11930922,85866.0,85865.0,0.00999308]
[1765821311565,0.11630922,85866.0,85865.0,0.00999308]
[1765821312166,0.00011459,85866.0,85865.0,0.00999308]
[1765821312401,0.011647,85859.0,85858.0,0.08877562]
[1765821312529,0.04526746,85866.0,85853.0,0.01856]
[1765821312530,0.23293911,85860.0,85859.0,0.08877562]
[1765821313359,0.24458736,85859.0,85856.0,0.0116474]
[1765821313557,0.01164673,85861.0,85857.0,0.244592]
[1765821313760,0.24457363,85864.0,85860.0,0.24458401]
[1765821313962,0.00172746,85866.0,85853.0,0.01856]
[1765821313963,0.011647,85859.0,85854.0,0.01164768]
[1765821314162,0.011647,85859.0,85858.0,0.1165]
[1765821314163,0.24458705,85859.0,85858.0,0.1165]
[1765821314365,0.24460445,85853.0,85852.0,0.00999399]
[1765821314566,0.24461875,85848.0,85847.0,0.1165]
[1765821314772,0.24461875,85848.0,85847.0,0.14404459]
[1765821315168,0.01164781,85853.0,85848.0,0.12814849]
[1765821315372,0.00161287,85859.0,85852.0,0.01164795]
[1765821315555,0.0116474,85856.0,85855.0,0.1165]
[1765821315752,0.24459657,85856.0,85855.0,0.1165]
[1765821316640,0.01164659,85862.0,85861.0,0.00999399]
[1765821316830,0.01164659,85862.0,85859.0,0.011647]
[1765821316831,0.01164659,85862.0,85857.0,0.01164727]
[1765821317112,0.2445785,85862.0,85861.0,0.1165]
[1765821317274,0.2445785,85862.0,85861.0,0.14404459]
[1765821317481,0.23292648,85864.0,85863.0,0.1165]
[1765821317908,0.23296175,85851.0,85850.0,0.02350944]
[1765821318098,0.23296175,85851.0,85850.0,0.01351545]
[1765821318099,0.25473175,85851.0,85850.0,0.01351545]
[1765821318300,0.25473175,85851.0,85848.0,0.00999399]
[1765821318301,0.23296718,85849.0,85848.0,0.00999399]
[1765821318507,0.23296528,85850.0,85848.0,0.00999399]
[1765821318909,0.23296528,85850.0,85849.0,0.0266275]
[1765821319165,0.23296528,85850.0,85848.0,0.00999399]
[1765821319529,0.04354,85849.0,85848.0,0.00999399]
[1765821319735,0.23298889,85841.0,85840.0,0.13506]
[1765821320365,0.01164835,85849.0,85841.0,0.01164944]
[1765821320537,0.24462839,85845.0,85844.0,0.1165]
[1765821320737,0.24462839,85845.0,85844.0,0.130006]
[1765821321543,0.24462839,85845.0,85844.0,0.131006]
[1765821322183,0.24462839,85845.0,85844.0,0.133006]
[1765821322387,0.28978126,85845.0,85844.0,0.1195]
[1765821322587,0.28978126,85845.0,85844.0,0.003]
[1765821322742,0.26801126,85845.0,85844.0,0.003]
[1765821322944,0.03503177,85845.0,85844.0,0.003]
[1765821323147,0.03503177,85845.0,85844.0,0.01844491]
[1765821323533,0.03503177,85845.0,85844.0,0.01744491]
[1765821323735,0.01326177,85845.0,85844.0,0.01744491]
[1765821323933,0.03603177,85845.0,85844.0,0.01744491]
[1765821324166,0.03603177,85845.0,85844.0,0.01544491]
[1765821324381,0.0116493,85842.0,85839.0,0.01164971]
[1765821324580,0.24463665,85842.0,85838.0,0.20994957]
[1765821324782,0.23297112,85848.0,85845.0,0.1165]
[1765821324982,0.01164822,85850.0,85845.0,0.1165]
[1765821324983,0.01164768,85854.0,85846.0,0.01164876]
[1765821325131,0.02177,85863.0,85860.0,0.1165]
[1765821325335,0.01164618,85865.0,85862.0,0.1165]
[1765821325541,0.24457665,85863.0,85862.0,0.1165]
[1765821325776,0.26795952,85863.0,85862.0,0.1165]
[1765821326361,0.24618952,85863.0,85862.0,0.1165]
[1765821326588,0.24618952,85863.0,85862.0,0.12931474]
[1765821327033,0.00261287,85863.0,85862.0,0.12931474]
[1765821327241,0.00261287,85863.0,85862.0,0.03610793]
[1765821327242,0.001,85863.0,85862.0,0.03610793]
[1765821327470,0.003,85863.0,85862.0,0.12931474]
[1765821327688,0.00011459,85866.0,85865.0,0.34942377]
[1765821327899,0.00011459,85866.0,85865.0,0.43120362]
[1765821328145,0.00011459,85866.0,85865.0,0.14978985]
[1765821329015,0.00011459,85866.0,85865.0,0.29284222]
[1765821329209,0.00011459,85866.0,85865.0,0.27154985]
[1765821330080,0.00011459,85866.0,85865.0,0.27311985]
[1765821330326,0.00011459,85866.0,85865.0,0.27211985]
[1765821330540,0.00011459,85866.0,85865.0,0.27411985]
[1765821330762,0.00011459,85866.0,85865.0,0.50704362]
[1765821331433,0.00011459,85866.0,85865.0,0.84776201]
[1765821333271,0.00011459,85866.0,85865.0,0.84476201]
[1765821333479,0.00011459,85866.0,85865.0,0.84776201]
[1765821333686,0.00011459,85866.0,85865.0,0.84976201]
[1765821334127,0.00011459,85866.0,85865.0,0.79974362]
[1765821338280,0.00011459,85866.0,85865.0,0.79941362]
[1765821338490,0.00011459,85866.0,85865.0,0.84943201]
[1765821338925,0.01164171,85898.0,85865.0,0.84943201]
[1765821338926,0.02188,85897.0,85896.0,0.00999399]
[1765821339145,0.02199466,85897.0,85896.0,0.00999399]
[1765821339384,0.27671166,85897.0,85896.0,0.02280873]
[1765821339585,0.27832453,85897.0,85896.0,0.00999399]
[1765821339804,0.23285868,85889.0,85888.0,0.1165]
[1765821340002,0.23288038,85881.0,85870.0,0.01856]
[1765821340157,0.2329075,85871.0,85870.0,0.04647679]
[1765821340369,0.2547875,85871.0,85870.0,0.02791679]
[1765821340568,0.23292393,85865.0,85863.0,0.00999399]
[1765821340813,0.01164578,85868.0,85864.0,0.01856]
[1765821341346,0.23292122,85866.0,85864.0,0.01856]
[1765821341590,0.23292648,85864.0,85863.0,0.00999399]
[1765821341805,0.25480648,85864.0,85863.0,0.00999399]
[1765821342213,0.23295904,85852.0,85851.0,0.00999399]
[1765821342369,0.24460495,85853.0,85851.0,0.01867459]
[1765821342568,0.01164754,85855.0,85851.0,0.01176267]
[1765821342854,0.01164754,85855.0,85854.0,0.1165]
[1765821343046,0.01164713,85858.0,85854.0,0.1165]
[1765821343182,0.011647,85859.0,85856.0,0.1165]
[1765821343390,0.01164673,85861.0,85858.0,0.1165]
[1765821343591,0.24457988,85862.0,85861.0,0.1165]
[1765821343791,0.01164618,85865.0,85863.0,0.1165]
[1765821343792,0.24618736,85864.0,85863.0,0.1165]
[1765821344011,0.00161287,85864.0,85863.0,0.1165]
[1765821344218,0.001,85868.0,85864.0,0.01164632]
[1765821344426,0.01164578,85868.0,85867.0,0.1165]
[1765821345476,0.01264578,85868.0,85867.0,0.1165]
[1765821345684,0.01164578,85868.0,85867.0,0.1165]
[1765821346032,0.01264578,85868.0,85867.0,0.1165]
[1765821346244,0.01164727,85857.0,85856.0,0.00999399]
[1765821346448,0.011647,85859.0,85856.0,0.02777518]
[1765821346749,0.01164686,85860.0,85856.0,0.03942258]
[1765821346984,0.01164659,85862.0,85856.0,0.27236836]
[1765821347211,0.2445816,85861.0,85860.0,0.1165]
[1765821348124,0.2445816,85861.0,85857.0,0.01164727]
[1765821348125,0.01164632,85864.0,85858.0,0.01164713]
[1765821348292,0.23293191,85862.0,85861.0,0.1165]
[1765821348503,0.24457538,85864.0,85861.0,0.1165]
[1765821348707,0.23293082,85863.0,85861.0,0.1165]
[1765821349742,0.00161287,85868.0,85864.0,0.01164632]
[1765821349955,0.24455355,85871.0,85870.0,0.1165]
[1765821350330,0.24455287,85871.0,85870.0,0.1165]
[1765821350631,0.12783986,85872.0,85871.0,0.1165]
[1765821350632,0.11619463,85872.0,85871.0,0.1165]
[1765821351179,0.34909941,85872.0,85871.0,0.1165]
[1765821351383,0.11619463,85872.0,85871.0,0.1165]
[1765821351701,0.11619463,85872.0,85871.0,0.3494075]
[1765821351860,0.11619463,85872.0,85871.0,0.3679675]
[1765821352234,0.11619463,85872.0,85871.0,0.4164475]
[1765821352433,0.11619463,85872.0,85871.0,0.4889675]
[1765821357235,0.01164361,85884.0,85880.0,0.24452463]
[1765821357441,0.23286682,85886.0,85885.0,0.1165]
[1765821357687,0.01164279,85890.0,85889.0,0.1165]
[1765821357889,0.24611163,85890.0,85889.0,0.1165]
[1765821358099,0.26799163,85890.0,85889.0,0.12815]
[1765821358290,0.26799163,85890.0,85889.0,0.01165]
[1765821358445,0.26799163,85890.0,85889.0,0.1165]
[1765821359294,0.27099163,85890.0,85889.0,0.1165]
[1765821360696,0.27499163,85890.0,85889.0,0.1165]
[1765821362015,0.00861287,85890.0,85889.0,0.34935868]
[1765821362220,0.01164334,85886.0,85880.0,0.02236582]
[1765821362400,0.02188,85881.0,85880.0,0.00999399]
[1765821362605,0.2445159,85884.0,85880.0,0.23288309]
[1765821362804,0.23286375,85888.0,85886.0,0.1165]
[1765821363043,0.23285137,85892.0,85889.0,0.34935868]
[1765821363235,0.01164293,85889.0,85886.0,0.00161287]
[1765821363397,0.24450188,85889.0,85888.0,0.1165]
[1765821363596,0.24450188,85889.0,85884.0,0.13506]
[1765821363597,0.232871,85885.0,85884.0,0.13506]
[1765821363909,0.23287615,85883.0,85882.0,0.1165]
[1765821364111,0.24451989,85883.0,85882.0,0.13506]
[1765821364388,0.01164374,85883.0,85882.0,0.13506]
[1765821364567,0.23286953,85885.0,85884.0,0.1165]
[1765821364767,0.23286752,85886.0,85884.0,0.1165]
[1765821364967,0.23386953,85885.0,85884.0,0.1165]
[1765821365343,0.001,85885.0,85884.0,0.1165]
[1765821365547,0.23286736,85886.0,85884.0,0.1165]
[1765821365747,0.23286953,85885.0,85884.0,0.1165]
[1765821366388,0.23290652,85872.0,85870.0,0.02909784]
[1765821366551,0.2329075,85871.0,85870.0,0.02909784]
[1765821366756,0.01164564,85869.0,85865.0,0.00999399]
[1765821367013,0.01164523,85872.0,85865.0,0.02164017]
[1765821367139,0.23291853,85867.0,85866.0,0.00727018]
[1765821367333,0.23291853,85867.0,85860.0,0.01856]
[1765821367334,0.23292106,85866.0,85864.0,0.1165]
[1765821367867,0.01164591,85867.0,85864.0,0.1165]
[1765821368275,0.23292106,85866.0,85865.0,0.001]
[1765821368476,0.23292377,85865.0,85864.0,0.1165]
[1765821369113,9.344e-05,85866.0,85864.0,0.1165]
[1765821369521,0.23292377,85865.0,85864.0,0.1165]
[1765821369697,0.01164646,85863.0,85862.0,0.00999399]
[1765821369917,0.24457566,85863.0,85862.0,0.00999399]
[1765821370079,0.24457566,85863.0,85851.0,0.23295953]
[1765821370080,0.23294397,85858.0,85851.0,0.23295953]
[1765821370439,0.011647,85859.0,85858.0,0.00999399]
[1765821370578,0.23293733,85860.0,85859.0,0.00999399]
[1765821370785,0.23294276,85858.0,85857.0,0.1165]
[1765821371006,0.011647,85859.0,85848.0,0.01164849]
[1765821371007,0.01164768,85854.0,85853.0,0.1165]
[1765821371210,0.011647,85859.0,85855.0,0.01164754]
[1765821371410,0.24458713,85859.0,85855.0,0.01164754]
[1765821371668,0.01164754,85855.0,85853.0,0.11641515]
[1765821371800,0.23295361,85854.0,85853.0,0.11641515]
[1765821372026,0.24458762,85859.0,85853.0,0.11641515]
[1765821372027,0.36619463,85890.0,85861.0,0.01164673]
[1765821372236,0.36619463,85890.0,85860.0,0.2329373]
[1765821372237,0.01164646,85863.0,85860.0,0.2329373]
[1765821372456,0.2445866,85860.0,85856.0,0.0116474]
[1765821372731,0.23301456,85866.0,85865.0,0.11643045]
[1765821373159,9.344e-05,85866.0,85865.0,0.11643045]
[1765821373766,0.2340145,85866.0,85865.0,0.11643045]
[1765821374148,0.011647,85859.0,85853.0,0.01326068]
[1765821374396,0.011647,85859.0,85829.0,0.46603881]
[1765821374397,0.01164768,85854.0,85846.0,0.01164876]
[1765821374564,0.23295904,85852.0,85851.0,0.11643045]
[1765821375077,0.23295904,85852.0,85847.0,0.01758941]
[1765821375078,0.23296608,85850.0,85847.0,0.01758941]
[1765821375260,0.01164768,85854.0,85850.0,0.01164822]
[1765821375462,0.2329699,85848.0,85847.0,0.00594078]
[1765821375979,0.23299161,85840.0,85839.0,0.11643045]
[1765821376157,0.0116493,85842.0,85839.0,0.11643045]
[1765821376158,0.23298889,85841.0,85839.0,0.11643045]
[1765821376360,0.23299161,85840.0,85839.0,0.11643045]
[1765821377228,0.23299161,85840.0,85839.0,0.11654504]
[1765821377430,0.23299161,85840.0,85839.0,0.11854504]
[1765821377627,0.23299161,85840.0,85839.0,0.11754504]
[1765821378034,0.23298889,85841.0,85839.0,0.11654504]
[1765821378317,0.0116493,85842.0,85839.0,0.11915791]
[1765821378519,0.23299161,85840.0,85839.0,0.11915791]
[1765821378732,0.2329892,85841.0,85839.0,0.11915791]
[1765821379022,0.24462781,85845.0,85842.0,0.0116493]
[1765821379322,0.24463088,85844.0,85839.0,0.36380143]
[1765821379572,0.24463088,85844.0,85840.0,0.24464106]
[1765821379573,0.24462989,85844.0,85840.0,0.24464106]
[1765821379725,0.01164917,85843.0,85840.0,0.23299115]
[1765821380086,0.01164795,85852.0,85850.0,0.11643045]
[1765821380276,0.23296175,85851.0,85850.0,0.11643045]
[1765821380434,0.22524373,85851.0,85850.0,0.11643045]
[1765821380859,0.2329785,85845.0,85844.0,0.11643045]
[1765821381060,0.24462417,85846.0,85844.0,0.11643045]
[1765821381262,0.24462417,85846.0,85840.0,0.001]
[1765821381263,0.23298889,85841.0,85840.0,0.001]
[1765821382089,0.23298974,85841.0,85839.0,0.00011459]
[1765821382874,0.23298974,85841.0,85840.0,0.001]
[1765821383076,0.23298974,85841.0,85840.0,0.0127545]
[1765821383281,0.23298974,85841.0,85839.0,0.00011459]
[1765821383462,0.23298974,85841.0,85839.0,0.00111459]
[1765821383663,0.23298974,85841.0,85839.0,0.00011459]
[1765821383664,0.23398974,85841.0,85839.0,0.00011459]
[1765821384076,0.05816002,85840.0,85839.0,0.00011459]
[1765821384474,0.10260622,85840.0,85839.0,0.00011459]
[1765821384643,0.10260622,85840.0,85801.0,0.24474997]
[1765821384644,0.01165433,85805.0,85801.0,0.24474997]
[1765821384785,0.01165419,85806.0,85804.0,0.11643045]
[1765821384990,0.24472618,85811.0,85807.0,0.01165406]
[1765821385190,0.01165392,85808.0,85804.0,0.12969778]
[1765821385420,0.01165406,85807.0,85804.0,0.12969778]
[1765821385610,0.01165365,85810.0,85805.0,0.01165433]
[1765821385851,0.24473242,85808.0,85804.0,0.12969778]
[1765821386160,0.24474526,85804.0,85801.0,0.11681324]
[1765821386380,0.23309394,85803.0,85801.0,0.11681324]
[1765821386604,0.23309394,85803.0,85801.0,0.14435783]
[1765821387075,0.23308505,85806.0,85802.0,0.01165473]
[1765821387276,0.01165419,85806.0,85802.0,0.01165473]
[1765821387488,0.24472577,85811.0,85810.0,0.11643045]
[1765821388148,0.24473873,85806.0,85805.0,0.11643045]
[1765821388543,0.01165419,85806.0,85805.0,0.11643045]
[1765821388950,0.01165419,85806.0,85802.0,0.24636042]
[1765821388951,0.24474216,85805.0,85802.0,0.0132676]
[1765821389586,0.24474216,85805.0,85801.0,0.00038279]
[1765821389587,0.23309208,85803.0,85801.0,0.00038279]
[1765821389803,0.2907,85802.0,85801.0,0.00038279]
[1765821390021,0.87376,85802.0,85801.0,0.00038279]
[1765821390225,0.23309208,85803.0,85801.0,0.00038279]
[1765821391198,0.23309208,85803.0,85802.0,0.003]
[1765821391401,0.23509208,85803.0,85802.0,0.003]
[1765821391606,0.23509208,85803.0,85801.0,0.00038279]
[1765821391607,1.0,85802.0,85801.0,0.00038279]
[1765821392029,1.05825995,85802.0,85801.0,0.00038279]
[1765821392373,0.86365995,85802.0,85801.0,0.00038279]
[1765821392525,0.46405995,85802.0,85801.0,0.00038279]
[1765821392709,0.4068,85802.0,85801.0,0.00038279]
[1765821393248,0.4078,85802.0,85801.0,0.00038279]